bitfinex-derivatives/quotes_BNBF0:USTF0_20251219
["timestamp","ask_amount","ask_price","bid_price","bid_amount"]
[1766117287191,0.8892323,839.09,837.84,0.87460408]
[1766117287387,0.8892323,839.08,837.83,0.87460408]
[1766117287587,0.8892323,839.08,837.72,12.92494511]
[1766117287588,0.8892323,838.98,837.73,0.87460408]
[1766117288189,0.8892323,838.98,837.72,13.79954919]
[1766117290290,10.18407724,839.13,837.72,13.79954919]
[1766117290291,0.8892323,838.99,837.72,13.79954919]
[1766117291194,0.8892323,838.99,837.72,12.92494511]
[1766117291494,0.8892323,839.0,837.72,13.79954919]
[1766117292191,0.8892323,839.01,837.73,0.87460408]
[1766117292696,0.8892323,839.08,837.8,0.87460408]
[1766117293196,0.8892323,839.07,837.81,0.87460408]
[1766117293392,0.8892323,839.1,837.84,0.87460408]
[1766117293597,8.99361822,839.13,837.9,0.87460408]
[1766117294295,8.99361822,839.13,837.92,0.87460408]
[1766117295296,8.99361822,839.13,837.93,0.87460408]
[1766117295703,0.8892323,839.15,837.93,0.87460408]
[1766117295897,0.207357,839.36,837.72,12.92494511]
[1766117295898,0.207357,839.36,838.43,0.87460408]
[1766117296093,0.8892323,839.69,838.46,0.87460408]
[1766117296293,0.8892323,839.75,838.5,0.87460408]
[1766117296500,0.20736874,839.46,838.55,0.87460408]
[1766117297198,0.20736874,839.46,838.53,0.87460408]
[1766117298393,0.20736874,839.46,838.51,0.87460408]
[1766117299199,0.20736874,839.46,838.49,0.87460408]
[1766117299394,0.20736874,839.46,838.42,0.87460408]
[1766117299699,0.20736874,839.46,838.39,0.87460408]
[1766117299899,0.20736874,839.46,838.35,0.87460408]
[1766117300100,0.20736874,839.46,838.23,0.87460408]
[1766117301601,0.20736874,839.46,838.22,0.87460408]
[1766117302098,8.97517847,839.64,838.55,0.87460408]
[1766117302300,8.97517847,839.64,838.59,0.8723544]
[1766117302499,0.20734527,839.55,838.59,0.8723544]
[1766117302702,0.20734527,839.55,838.6,0.8723544]
[1766117302900,0.20734527,839.55,838.64,0.8723544]
[1766117303300,0.20734527,839.55,838.61,0.8723544]
[1766117304299,0.20734527,839.55,838.58,0.8723544]
[1766117304500,0.20734527,839.55,838.42,1.1498495]
[1766117304501,0.20734527,839.55,838.57,0.8723544]
[1766117305201,0.20734527,839.55,838.51,0.8723544]
[1766117306207,0.20734527,839.55,837.67,0.01119118]
[1766117306208,0.20734527,839.55,838.48,0.8723544]
[1766117307307,0.20734527,839.55,838.46,0.8723544]
[1766117308210,0.20734527,839.55,838.43,0.8723544]
[1766117308510,0.20734527,839.55,838.44,0.8723544]
[1766117309106,0.20734527,839.55,838.37,0.8723544]
[1766117310210,0.20734527,839.55,838.36,0.8723544]
[1766117311210,0.20734527,839.55,838.35,0.8723544]
[1766117312215,0.20734527,839.55,838.3,0.8723544]
[1766117312415,8.97517847,839.64,837.7,55.71676546]
[1766117312416,8.97517847,839.64,838.41,0.8723544]
[1766117312614,8.97517847,839.64,838.42,0.8723544]
[1766117312814,0.20735638,839.63,838.42,0.8723544]
[1766117313114,0.20735638,839.63,838.36,0.8723544]
[1766117314316,0.20735638,839.63,838.35,0.8723544]
[1766117315215,0.20735638,839.63,838.34,0.8723544]
[1766117315615,0.20735638,839.63,838.36,0.8723544]
[1766117316115,0.20735638,839.63,838.43,0.8723544]
[1766117316316,0.20735638,839.63,838.42,0.8723544]
[1766117317014,0.20735638,839.63,838.12,1.74810467]
[1766117317015,0.20735638,839.63,838.45,0.8723544]
[1766117317216,8.97517847,839.64,838.5,0.8723544]
[1766117317415,8.97517847,839.64,837.7,55.71676546]
[1766117317416,8.97517847,839.64,838.57,0.8723544]
[1766117318017,8.97517847,839.64,838.53,0.8723544]
[1766117318218,8.97517847,839.64,838.51,0.8723544]
[1766117318514,8.97517847,839.64,838.45,0.8723544]
[1766117319111,8.97517847,839.64,838.44,0.8723544]
[1766117319819,8.97517847,839.64,838.41,0.8723544]
[1766117320016,8.97517847,839.64,838.36,0.8723544]
[1766117320214,8.97517847,839.64,838.35,0.8723544]
[1766117320418,8.97517847,839.64,837.7,55.71676546]
[1766117320419,8.97517847,839.64,838.28,0.8723544]
[1766117321917,8.97517847,839.64,838.27,0.8723544]
[1766117322116,8.97517847,839.64,838.19,0.8723544]
[1766117322418,8.97517847,839.64,838.12,0.8723544]
[1766117323313,8.97517847,839.64,838.25,0.8723544]
[1766117323513,8.97517847,839.64,838.26,0.8723544]
[1766117323716,8.97517847,839.64,838.31,0.8723544]
[1766117323919,8.97517847,839.64,838.34,0.8723544]
[1766117324415,8.97517847,839.64,838.39,0.8723544]
[1766117329518,8.97517847,839.64,838.35,0.8723544]
[1766117329923,8.97517847,839.64,838.32,0.8723544]
[1766117330721,8.97517847,839.64,838.31,0.8723544]
[1766117331222,8.97517847,839.64,838.26,0.8723544]
[1766117331422,8.97517847,839.64,838.27,0.8723544]
[1766117332821,8.97517847,839.64,838.19,0.8723544]
[1766117333120,8.97517847,839.64,838.2,0.8723544]
[1766117333619,8.97517847,839.64,838.23,0.8723544]
[1766117333824,8.97517847,839.64,838.08,1.1498495]
[1766117333825,8.97517847,839.64,838.28,0.8723544]
[1766117335326,8.97517847,839.64,838.29,0.8723544]
[1766117336325,8.97517847,839.64,838.3,0.8723544]
[1766117336821,8.97517847,839.64,838.23,0.8723544]
[1766117337222,8.97517847,839.64,838.08,1.1498495]
[1766117337223,8.97517847,839.64,838.24,0.8723544]
[1766117337423,8.97517847,839.64,838.17,0.8723544]
[1766117338222,8.97517847,839.64,838.18,0.8723544]
[1766117339024,8.97517847,839.64,838.17,0.8723544]
[1766117339223,8.97517847,839.64,837.87,1.74810467]
[1766117339224,8.97517847,839.64,838.12,0.8723544]
[1766117339426,8.97517847,839.64,838.03,0.8723544]
[1766117339927,8.97517847,839.64,838.0,0.8723544]
[1766117341230,8.97517847,839.64,837.98,0.8723544]
[1766117341427,8.97517847,839.64,837.95,0.8723544]
[1766117342132,8.97517847,839.64,837.96,0.8723544]
[1766117343228,8.97517847,839.64,837.98,0.8723544]
[1766117344228,8.97517847,839.64,837.99,0.8723544]
[1766117345233,8.97517847,839.64,838.0,0.8723544]
[1766117345433,8.97517847,839.64,838.07,0.8723544]
[1766117346030,8.97517847,839.64,838.08,0.8723544]
[1766117346330,8.97517847,839.64,838.09,0.8723544]
[1766117346831,8.97517847,839.64,838.04,0.8723544]
[1766117347030,8.97517847,839.64,838.01,0.8723544]
[1766117347231,8.97517847,839.64,838.02,0.8723544]
[1766117347531,8.97517847,839.64,838.03,0.8723544]
[1766117348135,8.97517847,839.64,838.05,0.8723544]
[1766117348331,8.97517847,839.64,838.07,0.8723544]
[1766117349237,8.97517847,839.64,838.1,0.8723544]
[1766117350141,8.97517847,839.64,838.06,0.8723544]
[1766117350142,9.86441077,839.64,838.06,0.8723544]
[1766117350441,0.8892323,839.57,837.99,0.8723544]
[1766117350841,0.8892323,839.48,837.9,0.8723544]
[1766117351141,0.8892323,839.46,837.92,0.8723544]
[1766117352137,0.8892323,839.47,837.91,0.8723544]
[1766117352338,0.8892323,839.44,837.94,0.8723544]
[1766117353342,0.8892323,839.43,837.96,0.8723544]
[1766117354245,0.8892323,839.42,837.97,0.8723544]
[1766117355247,0.8892323,839.41,837.98,0.8723544]
[1766117355740,1.18539684,839.57,838.18,1.1498495]
[1766117356041,8.97517847,839.64,837.72,12.92494511]
[1766117356042,8.97517847,839.64,838.36,0.8723544]
[1766117356245,8.97517847,839.64,838.31,0.8723544]
[1766117359744,8.97517847,839.64,838.26,0.8723544]
[1766117360149,8.97517847,839.64,838.24,0.8723544]
[1766117362143,8.97517847,839.64,838.26,0.8723544]
[1766117362347,8.97517847,839.64,838.33,0.8723544]
[1766117362748,8.97517847,839.64,838.7,0.8723544]
[1766117363243,8.97517847,839.64,838.4,1.74810467]
[1766117363244,8.97517847,839.64,838.65,0.8723544]
[1766117364148,8.97517847,839.64,838.64,0.8723544]
[1766117364648,8.97517847,839.64,838.68,0.8723544]
[1766117365345,8.97517847,839.64,838.69,0.8723544]
[1766117365849,8.97517847,839.64,838.77,0.8723544]
[1766117366050,8.97517847,839.64,838.77,13.95412532]
[1766117367249,8.97517847,839.64,838.77,13.08177092]
[1766117368249,8.97517847,839.64,838.83,0.8723544]
[1766117368751,8.97517847,839.64,838.87,0.8723544]
[1766117369351,8.97517847,839.64,838.86,0.8723544]
[1766117369852,8.97517847,839.64,838.87,0.8723544]
[1766117370253,8.97517847,839.64,838.86,0.8723544]
[1766117371253,8.97517847,839.64,838.85,0.8723544]
[1766117371851,8.97517847,839.64,838.78,0.8723544]
[1766117372050,8.97517847,839.64,838.77,13.95412532]
[1766117373356,8.97517847,839.64,838.77,13.08177092]
[1766117390278,8.97517847,839.64,838.82,0.8723544]
[1766117391272,8.97517847,839.64,838.81,0.8723544]
[1766117391676,8.97517847,839.64,838.82,0.8723544]
[1766117392376,8.97517847,839.64,838.81,0.8723544]
[1766117393172,8.97517847,839.64,838.8,0.8723544]
[1766117393774,8.97517847,839.64,838.77,13.08177092]
[1766117401181,8.97517847,839.64,838.77,13.95412532]
[1766117402279,8.97517847,839.64,838.78,0.8723544]
[1766117404284,8.97517847,839.64,838.79,0.8723544]
[1766117404484,8.97517847,839.64,838.77,13.08177092]
[1766117411190,8.97517847,839.64,838.79,0.8723544]
[1766117412294,8.97517847,839.64,838.81,0.8723544]
[1766117412592,8.97517847,839.64,838.87,0.8723544]
[1766117413290,8.97517847,839.64,838.93,0.8723544]
[1766117414090,0.2072971,839.84,838.93,0.8723544]
[1766117414296,0.8892323,840.49,839.11,0.8723544]
[1766117414491,0.2072687,840.02,839.11,0.8723544]
[1766117414795,0.8892323,840.49,839.11,0.8723544]
[1766117414992,0.20720514,840.02,839.15,0.8723544]
[1766117415198,0.8892323,840.49,839.17,0.8723544]
[1766117415393,0.8892323,840.49,839.16,0.8723544]
[1766117415997,0.8892323,840.49,839.17,0.8723544]
[1766117416198,0.8892323,840.48,839.17,0.8723544]
[1766117416498,0.20720638,840.17,839.17,0.8723544]
[1766117417394,0.20720638,840.17,839.18,0.8723544]
[1766117419303,0.20720638,840.17,839.19,0.8723544]
[1766117419796,0.20720638,840.17,839.2,0.8723544]
[1766117419997,0.20720638,840.17,839.12,0.8723544]
[1766117420197,0.20720638,840.17,839.14,0.8723544]
[1766117421304,0.20720638,840.17,839.17,0.8723544]
[1766117422401,0.20720638,840.17,839.19,0.8723544]
[1766117423002,0.20720638,840.17,838.88,1.74810467]
[1766117423003,0.20720638,840.17,839.11,0.8723544]
[1766117423203,0.20720638,840.17,839.12,0.8723544]
[1766117423999,0.20720638,840.17,839.04,0.8723544]
[1766117424199,0.8892323,840.15,839.04,0.8723544]
[1766117424499,0.8892323,840.14,839.04,0.8723544]
[1766117424903,0.8892323,840.07,838.97,0.8723544]
[1766117426500,0.8892323,840.09,839.0,0.8723544]
[1766117427501,1.09643868,840.17,839.08,0.8723544]
[1766117432911,1.18709985,840.16,839.08,0.8723544]
[1766117433110,0.8892323,840.11,839.02,0.8723544]
[1766117434211,0.8892323,840.11,839.03,0.8723544]
[1766117435217,0.8892323,840.1,839.03,0.8723544]
[1766117436714,0.8892323,839.99,838.93,0.8723544]
[1766117436920,0.8892323,840.01,838.95,0.8723544]
[1766117437117,10.08334657,840.16,838.77,13.08177092]
[1766117437118,0.20724586,840.03,839.35,0.8723544]
[1766117437522,8.89794973,840.16,839.35,0.8723544]
[1766117438718,8.89794973,840.16,839.36,0.8723544]
[1766117438922,8.89794973,840.16,839.43,0.8723544]
[1766117439324,8.89794973,840.16,839.51,0.8723544]
[1766117440319,8.89794973,840.16,838.77,13.08177092]
[1766117440320,8.89794973,840.16,839.5,0.8723544]
[1766117441219,8.89794973,840.16,839.48,0.8723544]
[1766117442024,8.89794973,840.16,839.42,0.8723544]
[1766117442222,8.89794973,840.16,839.41,0.8723544]
[1766117442719,8.89794973,840.16,839.35,0.8723544]
[1766117443120,8.89794973,840.16,839.24,0.8723544]
[1766117443421,8.89794973,840.16,839.23,0.8723544]
[1766117444026,8.89794973,840.16,839.33,0.8723544]
[1766117444322,8.89794973,840.16,839.32,0.8723544]
[1766117445626,8.89794973,840.16,839.25,0.8723544]
[1766117446926,8.89794973,840.16,839.24,0.8723544]
[1766117447130,8.89794973,840.16,839.18,0.8723544]
[1766117447832,8.89794973,840.16,839.13,0.8723544]
[1766117450329,8.89794973,840.16,839.06,0.8723544]
[1766117450833,8.89794973,840.16,838.91,1.1498495]
[1766117450834,8.89794973,840.16,839.05,0.8723544]
[1766117451133,8.89794973,840.16,839.06,0.8723544]
[1766117452429,8.89794973,840.16,839.07,0.8723544]
[1766117452633,8.89794973,840.16,839.3,0.8723544]
[1766117453030,8.89794973,840.16,839.39,0.8723544]
[1766117453230,8.89794973,840.16,839.38,0.8723544]
[1766117453632,8.89794973,840.16,839.44,0.8723544]
[1766117454139,8.89794973,840.16,839.49,0.8723544]
[1766117455237,8.89794973,840.16,839.47,0.8723544]
[1766117455434,8.89794973,840.16,839.5,0.8723544]
[1766117456234,8.89794973,840.16,839.49,0.8723544]
[1766117457338,8.89794973,840.16,839.46,0.8723544]
[1766117457535,8.89794973,840.16,839.4,0.8723544]
[1766117457939,8.89794973,840.16,839.31,0.8723544]
[1766117458240,8.89794973,840.16,839.29,0.8723544]
[1766117458940,8.89794973,840.16,839.25,0.8723544]
[1766117459241,8.89794973,840.16,839.14,0.88132975]
[1766117459738,8.89794973,840.16,839.13,0.88132975]
[1766117460541,8.89794973,840.16,839.12,0.88132975]
[1766117460743,8.89794973,840.16,839.06,0.88132975]
[1766117461540,8.89794973,840.16,839.05,0.88132975]
[1766117461739,9.78572312,840.16,838.91,0.88132975]
[1766117461941,8.89794973,840.16,838.92,0.88132975]
[1766117462640,8.89794973,840.16,839.15,0.88132975]
[1766117462841,8.89794973,840.16,839.28,0.88132975]
[1766117463040,8.89794973,840.16,839.29,0.88132975]
[1766117463342,8.89794973,840.16,839.28,0.88132975]
[1766117463840,8.89794973,840.16,839.2,0.88132975]
[1766117467248,8.89794973,840.16,839.22,0.88132975]
[1766117467957,0.20716814,840.32,839.43,0.88132975]
[1766117468749,0.88777339,840.68,839.43,0.88132975]
[1766117469052,0.2071108,840.54,839.73,0.88132975]
[1766117469349,0.2071108,840.54,839.71,0.88132975]
[1766117469648,0.2071108,840.54,839.64,0.88132975]
[1766117470245,0.2071108,840.54,839.63,0.88132975]
[1766117471048,0.2071108,840.54,839.56,0.88132975]
[1766117471245,0.2071108,840.54,838.65,2.93240177]
[1766117471246,0.2071108,840.54,839.48,0.88132975]
[1766117474245,0.2071108,840.54,839.47,0.88132975]
[1766117476045,0.2071108,840.54,839.54,0.88132975]
[1766117476249,0.2071108,840.54,839.53,0.88132975]
[1766117477250,0.2071108,840.54,839.52,0.88132975]
[1766117478447,0.2071108,840.54,839.51,0.88132975]
[1766117479151,0.2071108,840.54,839.52,0.88132975]
[1766117480152,0.2071108,840.54,839.51,0.88132975]
[1766117481648,0.2071108,840.54,839.56,0.88132975]
[1766117483249,0.2071108,840.54,839.55,0.88132975]
[1766117484155,9.02431853,840.82,839.55,0.88132975]
[1766117484353,9.02431853,840.82,839.71,0.88132975]
[1766117484553,9.02431853,840.82,839.72,0.88132975]
[1766117484554,0.20708123,840.65,839.72,0.88132975]
[1766117484754,0.20708123,840.65,839.72,13.70134018]
[1766117485253,0.20708123,840.65,839.72,12.82001043]
[1766117485554,0.20708123,840.65,839.76,0.88132975]
[1766117486254,0.20708123,840.65,839.75,0.88132975]
[1766117486652,0.20708123,840.65,839.84,0.88132975]
[1766117487150,0.20708123,840.65,839.83,0.88132975]
[1766117488151,0.20708123,840.65,839.82,0.88132975]
[1766117488957,9.02431853,840.82,839.82,0.88132975]
[1766117489157,0.20704981,840.77,839.81,0.88132975]
[1766117490152,0.20704981,840.77,839.8,0.88132975]
[1766117491256,0.20704981,840.77,839.79,0.88132975]
[1766117491656,0.20704981,840.77,839.78,0.88132975]
[1766117492154,0.20704981,840.77,839.77,0.88132975]
[1766117492353,0.20704981,840.77,839.78,0.88132975]
[1766117494459,0.20704981,840.77,839.79,0.88132975]
[1766117494758,9.02431853,840.82,839.81,0.88132975]
[1766117494960,9.02431853,840.82,839.89,0.88132975]
[1766117495361,9.02431853,840.82,839.9,0.88132975]
[1766117495563,9.02431853,840.82,839.92,0.88132975]
[1766117496262,9.02431853,840.82,839.91,0.88132975]
[1766117497158,9.02431853,840.82,839.9,0.88132975]
[1766117498359,9.02431853,840.82,839.89,0.88132975]
[1766117498860,9.02431853,840.82,839.88,0.88132975]
[1766117499160,9.02431853,840.82,839.81,0.88132975]
[1766117499362,9.02431853,840.82,839.8,0.88132975]
[1766117500160,9.02431853,840.82,839.79,0.88132975]
[1766117500658,9.02431853,840.82,839.77,0.88132975]
[1766117500863,9.02431853,840.82,839.76,0.88132975]
[1766117501060,9.02431853,840.82,839.74,0.88132975]
[1766117501359,9.02431853,840.82,839.72,12.82001043]
[1766117523983,9.02431853,840.82,839.76,0.88132975]
[1766117524185,9.02431853,840.82,839.77,0.88132975]
[1766117525082,9.02431853,840.82,839.81,0.88132975]
[1766117525788,9.02431853,840.82,839.84,0.88132975]
[1766117526085,9.02431853,840.82,839.85,0.88132975]
[1766117526288,9.02431853,840.82,839.87,0.88132975]
[1766117527187,9.02431853,840.82,839.89,0.88132975]
[1766117527387,9.02431853,840.82,839.88,0.88132975]
[1766117527688,9.02431853,840.82,839.89,0.88132975]
[1766117528084,9.02431853,840.82,839.9,0.88132975]
[1766117528585,9.02431853,840.82,839.91,0.88132975]
[1766117529284,9.02431853,840.82,839.9,0.88132975]
[1766117529884,9.02431853,840.82,839.92,0.88132975]
[1766117530087,9.02431853,840.82,839.72,12.82001043]
[1766117530088,9.02431853,840.82,839.98,0.88132975]
[1766117531084,9.02431853,840.82,839.99,0.88132975]
[1766117532689,9.02431853,840.82,839.98,0.88132975]
[1766117533090,9.02431853,840.82,839.86,0.88132975]
[1766117533387,9.02431853,840.82,839.79,0.88132975]
[1766117534190,9.02431853,840.82,839.8,0.88132975]
[1766117534987,9.02431853,840.82,839.97,0.88132975]
[1766117535194,9.02431853,840.82,840.05,0.88132975]
[1766117538190,9.02431853,840.82,840.06,0.88132975]
[1766117538694,9.02431853,840.82,840.0,0.88132975]
[1766117540197,9.02431853,840.82,840.01,0.88132975]
[1766117541197,9.02431853,840.82,840.02,0.88132975]
[1766117543699,9.02431853,840.82,839.96,0.88132975]
[1766117544098,9.02431853,840.82,839.97,0.88132975]
[1766117546196,9.02431853,840.82,839.98,0.88132975]
[1766117547295,9.02431853,840.82,840.02,0.88132975]
[1766117548400,9.02431853,840.82,840.05,0.88132975]
[1766117551604,9.02431853,840.82,840.04,0.88132975]
[1766117553902,9.02431853,840.82,840.05,0.88132975]
[1766117554203,9.02431853,840.82,840.04,0.88132975]
[1766117554403,9.02431853,840.82,840.05,0.88132975]
[1766117554900,9.02431853,840.82,840.04,0.88132975]
[1766117555204,9.02431853,840.82,839.99,0.88132975]
[1766117556406,9.02431853,840.82,840.0,0.88132975]
[1766117557405,9.02431853,840.82,840.01,0.88132975]
[1766117559305,9.02431853,840.82,840.02,0.88132975]
[1766117561306,9.02431853,840.82,839.98,0.88132975]
[1766117562910,9.02431853,840.82,839.97,0.88132975]
[1766117566813,9.02431853,840.82,839.98,0.88132975]
[1766117572319,9.02431853,840.82,839.99,0.88132975]
[1766117575314,9.02431853,840.82,840.0,0.88132975]
[1766117578318,9.02431853,840.82,840.01,0.88132975]
[1766117581622,9.02431853,840.82,840.03,0.88132975]
[1766117584319,9.02431853,840.82,840.04,0.88132975]
[1766117585722,9.02431853,840.82,840.03,0.88132975]
[1766117585919,9.02431853,840.82,840.02,0.88132975]
[1766117586423,9.02431853,840.82,840.03,0.88132975]
[1766117587528,9.02431853,840.82,840.01,0.88132975]
[1766117589025,9.02431853,840.82,840.02,0.88132975]
[1766117590029,0.88777339,840.89,840.02,0.88132975]
[1766117591130,0.88777339,840.89,840.03,0.88132975]
[1766117594336,0.88777339,840.81,839.95,0.88132975]
[1766117594535,1.19093416,840.8,839.95,0.88132975]
[1766117594735,0.88777339,840.65,839.8,0.88132975]
[1766117595330,0.88777339,840.67,839.79,0.88132975]
[1766117596234,0.88777339,840.67,839.72,12.82001043]
[1766117596235,0.88777339,840.68,839.78,0.88132975]
[1766117597536,0.88777339,840.69,839.78,0.88132975]
[1766117598232,0.88777339,840.75,839.82,0.88132975]
[1766117598535,0.88777339,840.78,839.86,0.88132975]
[1766117599038,8.80994343,840.8,839.93,0.88132975]
[1766117599336,8.80994343,840.8,839.95,0.88132975]
[1766117602240,8.80994343,840.8,839.99,0.88132975]
[1766117602440,8.80994343,840.8,839.84,1.1498495]
[1766117602638,8.80994343,840.8,839.99,0.88804613]
[1766117603141,8.80994343,840.8,840.03,0.88804613]
[1766117608444,8.80994343,840.8,840.02,0.88804613]
[1766117608748,8.80994343,840.8,839.97,0.88804613]
[1766117611554,8.80994343,840.8,839.98,0.88804613]
[1766117613952,0.89069274,840.74,839.94,13.08819389]
[1766117615554,8.80994343,840.8,839.94,13.08819389]
[1766117615555,0.89069274,840.73,839.94,13.08819389]
[1766117615752,0.89069274,840.62,839.73,0.88804613]
[1766117615953,0.89069274,840.54,839.66,0.88804613]
[1766117616151,8.80994343,840.8,839.59,0.88804613]
[1766117616152,0.89069274,840.47,839.59,0.88804613]
[1766117616455,8.80994343,840.8,839.56,0.88804613]
[1766117616456,0.89069274,840.5,839.56,0.88804613]
[1766117616853,0.89069274,840.57,839.63,0.88804613]
[1766117617253,0.89069274,840.59,839.62,0.88804613]
[1766117617551,0.89069274,840.57,839.6,0.88804613]
[1766117618460,0.89069274,840.58,839.59,0.88804613]
[1766117619258,0.89069274,840.59,839.57,0.88804613]
[1766117620354,0.89069274,840.6,839.56,0.88804613]
[1766117621261,0.89069274,840.61,839.55,0.88804613]
[1766117622260,8.80994343,840.8,839.54,0.88804613]
[1766117622261,0.89069274,840.62,839.54,0.88804613]
[1766117622560,0.89069274,840.64,839.56,0.88804613]
[1766117622755,0.89069274,840.64,839.57,0.88804613]
[1766117623358,0.89069274,840.65,839.56,0.88804613]
[1766117624361,0.89069274,840.65,839.55,0.88804613]
[1766117625258,0.89069274,840.66,839.55,0.88804613]
[1766117626260,0.89069274,840.66,839.54,0.88804613]
[1766117627364,0.89069274,840.61,839.48,12.77894922]
[1766117629262,0.89069274,840.62,839.48,12.77894922]
[1766117631271,0.89069274,840.63,839.48,12.77894922]
[1766117633273,0.89069274,840.64,839.48,12.77894922]
[1766117633769,0.89069274,840.57,839.48,12.77894922]
[1766117635274,0.89069274,840.58,839.48,12.77894922]
[1766117636274,0.89069274,840.59,839.48,12.77894922]
[1766117639276,0.89069274,840.6,839.48,12.77894922]
[1766117642277,8.80994343,840.8,839.56,0.88804613]
[1766117642480,8.80994343,840.8,839.59,0.88804613]
[1766117642680,8.80994343,840.8,839.6,0.88804613]
[1766117645378,8.80994343,840.8,839.61,0.88804613]
[1766117647485,8.80994343,840.8,839.63,0.88804613]
[1766117648887,8.80994343,840.8,839.67,0.88804613]
[1766117650086,8.80994343,840.8,839.68,0.88804613]
[1766117653484,8.80994343,840.8,839.69,0.88804613]
[1766117653787,8.80994343,840.8,839.68,0.88804613]
[1766117654386,8.80994343,840.8,839.69,0.88804613]
[1766117655288,8.80994343,840.8,839.68,0.88804613]
[1766117655493,8.80994343,840.8,839.69,0.88804613]
[1766117656291,8.80994343,840.8,839.68,0.88804613]
[1766117656489,8.80994343,840.8,839.69,0.88804613]
[1766117658184,8.80994343,840.8,839.68,0.88804613]
[1766117658690,8.80994343,840.8,839.61,0.88804613]
[1766117660292,9.70063617,840.8,839.61,0.88804613]
[1766117661794,9.70063617,840.8,839.62,0.88804613]
[1766117662191,8.80994343,840.8,839.7,0.88804613]
[1766117662392,8.80994343,840.8,839.71,0.88804613]
[1766117663292,8.80994343,840.8,839.72,0.88804613]
[1766117664294,8.80994343,840.8,839.8,0.88804613]
[1766117665491,8.80994343,840.8,839.9,0.88804613]
[1766117665694,8.80994343,840.8,839.91,0.88804613]
[1766117666694,8.80994343,840.8,839.99,0.88804613]
[1766117667296,8.80994343,840.8,839.98,0.88804613]
[1766117667594,8.80994343,840.8,839.99,0.88804613]
[1766117667799,8.80994343,840.8,840.04,0.88804613]
[1766117668294,8.80994343,840.8,840.05,0.88804613]
[1766117668598,8.80994343,840.8,840.04,0.88804613]
[1766117669093,8.80994343,840.8,840.11,0.88804613]
[1766117669397,8.80994343,840.8,840.09,0.88804613]
[1766117670295,8.80994343,840.8,840.08,0.88804613]
[1766117670494,8.80994343,840.8,840.03,0.88804613]
[1766117670899,8.80994343,840.8,840.01,0.88804613]
[1766117671398,8.80994343,840.8,840.0,0.88804613]
[1766117672293,8.80994343,840.8,839.99,0.88804613]
[1766117672999,8.80994343,840.8,839.93,0.88804613]
[1766117673299,8.80994343,840.8,839.92,0.88804613]
[1766117673499,8.80994343,840.8,839.89,0.88804613]
[1766117673794,8.80994343,840.8,839.48,12.77894922]
[1766117673795,8.80994343,840.8,839.83,0.88804613]
[1766117674198,8.80994343,840.8,839.76,0.88804613]
[1766117676401,8.80994343,840.8,839.77,0.88804613]
[1766117677299,8.80994343,840.8,839.76,0.88804613]
[1766117678802,8.80994343,840.8,839.75,0.88804613]
[1766117679199,8.80994343,840.8,839.74,0.88804613]
[1766117681506,8.80994343,840.8,839.75,0.88804613]
[1766117682305,8.80994343,840.8,839.74,0.88804613]
[1766117682505,8.80994343,840.8,839.75,0.88804613]
[1766117688405,8.80994343,840.8,839.6,1.1498495]
[1766117688406,8.80994343,840.8,839.76,0.88804613]
[1766117690710,8.80994343,840.8,839.77,0.88804613]
[1766117690911,8.80994343,840.8,839.84,0.88804613]
[1766117691409,8.80994343,840.8,839.85,0.88804613]
[1766117692512,8.80994343,840.8,839.86,0.88804613]
[1766117694215,8.80994343,840.8,839.87,0.88804613]
[1766117695413,0.20706274,840.6,839.88,0.88804613]
[1766117696313,0.20706274,840.6,839.89,0.88804613]
[1766117697309,0.20706274,840.6,839.9,0.88804613]
[1766117698208,0.20706274,840.6,839.48,12.77894922]
[1766117698209,0.20706274,840.6,839.91,0.88804613]
[1766117699412,0.20706274,840.6,839.93,0.88804613]
[1766117700208,0.20706274,840.6,839.92,0.88804613]
[1766117701314,0.20706274,840.6,839.48,12.77894922]
[1766117701315,0.20706274,840.6,839.93,0.88804613]
[1766117701512,0.20706274,840.6,839.94,0.88804613]
[1766117702211,0.20706274,840.6,839.95,0.88804613]
[1766117702612,8.80994343,840.8,839.96,0.88804613]
[1766117702808,0.20704796,840.68,839.96,0.88804613]
[1766117703816,0.20704796,840.68,839.99,0.88804613]
[1766117705418,0.20704796,840.68,840.08,0.88804613]
[1766117706016,0.20704796,840.68,840.13,0.88804613]
[1766117706720,8.80994343,840.8,840.16,0.88804613]
[1766117707420,8.80994343,840.8,840.14,0.88804613]
[1766117710321,8.80994343,840.8,840.13,12.78734154]
[1766117710322,8.80994343,840.8,840.13,13.67538767]
[1766117712524,8.80994343,840.8,840.13,12.78734154]
[1766117714929,0.2070104,840.89,840.13,12.78734154]
[1766117737445,0.2070104,840.89,840.13,13.67538767]
[1766117738044,0.2070104,840.89,840.13,12.78734154]
[1766117740948,0.2070104,840.89,839.97,0.88804613]
[1766117741351,0.89069274,840.87,839.89,0.88804613]
[1766117742752,0.89069274,840.84,839.86,0.88804613]
[1766117742952,0.89069274,840.83,839.85,0.88804613]
[1766117743149,0.89069274,840.79,839.81,0.88804613]
[1766117743353,0.89069274,840.79,839.8,0.88804613]
[1766117745254,0.89069274,840.8,839.79,0.88804613]
[1766117745451,0.89069274,840.8,839.8,0.88804613]
[1766117745650,2.08162798,840.79,839.79,0.88804613]
[1766117745951,2.08162798,840.79,838.95,0.00967485]